[Event "84th ESP-ch 2019"]
[Site "Marbella"]
[Date "2019.11.19"]
[Round "4.39"]
[White "Luque Saiz, Andres"]
[Black "Galan Benitez, Francisco Jesus"]
[Result "1-0"]
[ECO "B34"]
[WhiteElo "2140"]
[BlackElo "1603"]
[Annotator "ChessBase"]
[PlyCount "87"]
[EventDate "2019.11.16"]
[EventType "swiss"]
[EventCountry "ESP"]
[SourceTitle "playchess.com"]
[Source "ChessBase"]
[SourceQuality "1"]
[TimeControl "5400+30"]

1. e4 c5 {[%emt 0:03:09]} 2. Nf3 {[%emt 0:00:00]} g6 {[%emt 0:00:06]} 3. d4 {[%emt 0:00:35]} cxd4 {[%emt 0:00:02]} 4. Nxd4 {[%emt 0:02:31]} Nc6 {[%emt 0:00:36]} 5. Nc3 {[%emt 0:01:00]} Bg7 {[%emt 0:00:19]} 6. Nf3 {[%emt 0:01:49]} Nf6 {[%emt 0:02:52]} 7. Bc4 {[%emt 0:01:44]} O-O {[%emt 0:05:50]} 8. O-O {[%emt 0:00:42]} a6 {[%emt 0:05:36]} 9. Re1 {[%emt 0:03:47]} b5 {[%emt 0:05:45]} 10. Bb3 {[%emt 0:03:10]} Bb7 {[%emt 0:08:41]} 11. Bg5 {[%emt 0:02:48]} h6 {[%emt 0:17:10]} 12. Bf4 {[%emt 0:08:31]} Nh5 {[%emt 0:03:07]} 13. Be3 {[%emt 0:00:23]} Nf6 {[%emt 0:09:34]} 14. h3 {[%emt 0:08:24]} d6 {[%emt 0:06:02]} 15. Nd5 {[%emt 0:21:09]} Nd7 {[%emt 0:01:10]} 16. c3 {[%emt 0:03:49]} Na5 {[%emt 0:04:36]} 17. Bd4 {[%emt 0:02:52]} Nxb3 {[%emt 0:06:39]} 18. Qxb3 {[%emt 0:04:52]} Nc5 {[%emt 0:00:54]} 19. Qc2 {[%emt 0:00:49]} Bxd4 {[%emt 0:04:09]} 20. cxd4 {[%emt 0:02:21]} Nd7 {[%emt 0:02:28]} 21. Qb3 {[%emt 0:05:10]} Nb6 {[%emt 0:01:47]} 22. Nf4 {[%emt 0:01:25]} Kh7 {[%emt 0:01:26]} 23. Rad1 {[%emt 0:02:43]} Qd7 {[%emt 0:02:57]} 24. Qd3 {[%emt 0:02:12]} Nc4 {[%emt 0:03:35]} 25. Re2 {[%emt 0:00:57]} Kg7 {[%emt 0:01:45]} 26. b3 {[%emt 0:00:47]} Nb6 {[%emt 0:00:02]} 27. Nh4 {[%emt 0:03:56]} e6 {[%emt 0:02:12]} 28. Qg3 {[%emt 0:02:28]} g5 {[%emt 0:00:57]} 29. Nh5+ {[%emt 0:02:40]} Kh8 {[%emt 0:00:09]} 30. f4 {[%emt 0:01:16]} Rg8 {[%emt 0:00:49]} 31. Nf6 {[%emt 0:02:23]} Qe7 {[%emt 0:00:34]} 32. Nxg8 {[%emt 0:00:17]} Rxg8 {[%emt 0:00:06]} 33. Nf3 {[%emt 0:00:30]} f6 {[%emt 0:00:46]} 34. fxg5 {[%emt 0:00:43]} fxg5 {[%emt 0:00:06]} 35. e5 {[%emt 0:00:10]} Bxf3 36. Qxf3 {[%emt 0:00:19]} dxe5 {[%emt 0:01:20]} 37. Rxe5 {[%emt 0:00:28]} Rf8 {[%emt 0:00:29]} 38. Qe3 {[%emt 0:00:21]} Rf6 {[%emt 0:00:42]} 39. d5 {[%emt 0:00:35]} Nd7 40. Rxe6 {[%emt 0:00:18]} Rxe6 {[%emt 0:00:49]} 41. Qxe6 {[%emt 0:00:20]} Qxe6 {[%emt 0:00:42]} 42. dxe6 {[%emt 0:00:04]} Nf6 {[%emt 0:00:15]} 43. Rf1 {[%emt 0:00:20]} Kg7 {[%emt 0:00:21]} 44. e7 {[%emt 0:00:05]} 1-0

[Event "84th ESP-ch 2019"]
[Site "Marbella"]
[Date "2019.11.19"]
[Round "4.40"]
[White "Maldonado Mena, German"]
[Black "Medarde Santiago, Luis Marcos"]
[Result "1/2-1/2"]
[ECO "A54"]
[WhiteElo "1840"]
[BlackElo "2285"]
[Annotator "ChessBase"]
[PlyCount "119"]
[EventDate "2019.11.16"]
[EventType "swiss"]
[EventCountry "ESP"]
[SourceTitle "playchess.com"]
[Source "ChessBase"]
[SourceQuality "1"]
[TimeControl "5400+30"]

1. d4 {[%emt 0:00:00]} Nf6 {[%emt 0:03:44]} 2. c4 {[%emt 0:00:00]} d6 {[%emt 0:00:06]} 3. Nc3 {[%emt 0:00:09]} e5 {[%emt 0:00:03]} 4. Nf3 {[%emt 0:00:44]} e4 {[%emt 0:00:20]} 5. Ng5 {[%emt 0:00:30]} Bf5 {[%emt 0:00:18]} 6. Qc2 {[%emt 0:01:55]} Qe7 {[%emt 0:27:04]} 7. f3 {[%emt 0:01:57]} Bg6 {[%emt 0:13:12]} 8. Ngxe4 {[%emt 0:04:26]} Nxe4 {[%emt 0:00:53]} 9. fxe4 {[%emt 0:07:50]} Nd7 {[%emt 0:10:23]} 10. g3 {[%emt 0:04:45]} Qd8 {[%emt 0:08:08]} 11. Bg2 {[%emt 0:05:42]} c6 {[%emt 0:00:03]} 12. h4 {[%emt 0:01:46]} h5 {[%emt 0:05:09]} 13. Bf4 {[%emt 0:01:10]} Be7 {[%emt 0:01:18]} 14. O-O {[%emt 0:03:37]} O-O {[%emt 0:03:29]} 15. e3 {[%emt 0:02:08]} Re8 {[%emt 0:00:34]} 16. Qb3 {[%emt 0:01:21]} Qb6 {[%emt 0:06:49]} 17. Rf2 {[%emt 0:11:16]} Nf6 {[%emt 0:00:42]} 18. Bf3 {[%emt 0:05:57]} Nd7 {[%emt 0:00:19]} 19. Raf1 {[%emt 0:03:05]} Qxb3 {[%emt 0:00:37]} 20. axb3 {[%emt 0:00:09]} Bf8 {[%emt 0:02:18]} 21. Bg2 {[%emt 0:03:03]} Nf6 {[%emt 0:02:46]} 22. Bg5 {[%emt 0:01:50]} Ng4 {[%emt 0:02:13]} 23. Re2 {[%emt 0:04:37]} a6 {[%emt 0:00:43]} 24. Ra1 {[%emt 0:02:55]} b5 {[%emt 0:01:48]} 25. e5 {[%emt 0:01:56]} Rec8 {[%emt 0:03:36]} 26. d5 {[%emt 0:16:51]} dxe5 {[%emt 0:01:28]} 27. dxc6 {[%emt 0:07:25]} bxc4 {[%emt 0:00:40]} 28. c7 {[%emt 0:01:46]} e4 {[%emt 0:01:13]} 29. Bf4 {[%emt 0:02:07]} Nf6 {[%emt 0:02:26]} 30. Bh3 {[%emt 0:00:25]} Ng4 {[%emt 0:00:21]} 31. Nd5 {[%emt 0:00:14]} Ra7 {[%emt 0:01:28]} 32. Bxg4 {[%emt 0:03:21]} hxg4 {[%emt 0:00:07]} 33. Nb6 {[%emt 0:01:00]} Rcxc7 {[%emt 0:00:00]} 34. Bxc7 {[%emt 0:00:16]} Rxc7 {[%emt 0:00:02]} 35. Nxc4 {[%emt 0:00:19]} Ra7 {[%emt 0:02:20]} 36. Ra5 {[%emt 0:00:32]} Bb4 {[%emt 0:00:19]} 37. Rd5 {[%emt 0:00:16]} f6 {[%emt 0:00:20]} 38. Rc2 {[%emt 0:00:54]} Bf7 {[%emt 0:00:59]} 39. Rd8+ {[%emt 0:00:21]} Kh7 {[%emt 0:00:01]} 40. Nd2 {[%emt 0:00:51]} f5 {[%emt 0:00:57]} 41. Rcc8 {[%emt 0:00:31]} Be6 {[%emt 0:00:37]} 42. Rb8 {[%emt 0:00:29]} Bc5 {[%emt 0:00:19]} 43. Kf2 {[%emt 0:00:06]} Rc7 {[%emt 0:00:42]} 44. Nc4 {[%emt 0:00:31]} Be7 {[%emt 0:00:19]} 45. Re8 {[%emt 0:00:48]} Bxc4 {[%emt 0:00:45]} 46. bxc4 {[%emt 0:00:05]} Rd7 {[%emt 0:00:21]} 47. Ke2 {[%emt 0:00:53]} a5 {[%emt 0:00:10]} 48. Rb5 {[%emt 0:00:10]} Bb4 {[%emt 0:00:40]} 49. Rd5 {[%emt 0:00:02]} Rc7 {[%emt 0:00:02]} 50. Rd4 {[%emt 0:01:25]} Bc5 {[%emt 0:00:28]} 51. Rdd8 {[%emt 0:00:11]} Ba7 {[%emt 0:01:19]} 52. Rd5 {[%emt 0:00:51]} Rxc4 {[%emt 0:00:09]} 53. Rd2 {[%emt 0:00:30]} Rb4 {[%emt 0:00:26]} 54. Ra8 {[%emt 0:00:23]} Bb6 {[%emt 0:00:33]} 55. Rc8 {[%emt 0:00:01]} Rb5 {[%emt 0:00:40]} 56. Rc3 {[%emt 0:01:02]} a4 {[%emt 0:00:37]} 57. Rc4 {[%emt 0:00:23]} Rb3 {[%emt 0:00:12]} 58. Rc3 {[%emt 0:00:03]} Rb5 {[%emt 0:00:03]} 59. Rdc2 {[%emt 0:00:38]} Rb4 {[%emt 0:01:06]} 60. Rc4 {[%emt 0:00:59]} 1/2-1/2

[Event "84th ESP-ch 2019"]
[Site "Marbella"]
[Date "2019.11.19"]
[Round "4.41"]
[White "Rodriguez Lopez, Rafael"]
[Black "Mohamed Garcia, Ismael"]
[Result "0-1"]
[ECO "C41"]
[WhiteElo "2228"]
[BlackElo "1825"]
[Annotator "ChessBase"]
[PlyCount "94"]
[EventDate "2019.11.16"]
[EventType "swiss"]
[EventCountry "ESP"]
[SourceTitle "playchess.com"]
[Source "ChessBase"]
[SourceQuality "1"]
[TimeControl "5400+30"]

1. e4 {[%emt 0:00:00]} d6 {[%emt 0:00:00]} 2. d4 {[%emt 0:00:00]} Nf6 {[%emt 0:00:06]} 3. Nc3 {[%emt 0:00:00]} e5 {[%emt 0:01:15]} 4. Nf3 {[%emt 0:00:00]} Nbd7 {[%emt 0:00:54]} 5. Bc4 {[%emt 0:00:07]} Be7 {[%emt 0:00:17]} 6. a4 {[%emt 0:00:06]} O-O {[%emt 0:00:18]} 7. O-O {[%emt 0:00:06]} exd4 {[%emt 0:00:41]} 8. Nxd4 {[%emt 0:00:26]} Re8 {[%emt 0:00:14]} 9. a5 {[%emt 0:00:27]} Bf8 {[%emt 0:00:51]} 10. Re1 {[%emt 0:00:39]} c6 {[%emt 0:02:25]} 11. h3 {[%emt 0:00:46]} Nc5 {[%emt 0:13:39]} 12. Bg5 {[%emt 0:06:33]} h6 {[%emt 0:00:18]} 13. Bxf6 {[%emt 0:00:10]} Qxf6 {[%emt 0:00:11]} 14. Re3 {[%emt 0:00:16]} Be6 {[%emt 0:10:39]} 15. Nxe6 {[%emt 0:00:22]} Nxe6 {[%emt 0:00:40]} 16. Qb1 {[%emt 0:08:13]} b5 {[%emt 0:00:54]} 17. Ba2 {[%emt 0:04:40]} Ng5 {[%emt 0:07:39]} 18. h4 {[%emt 0:00:33]} Ne6 {[%emt 0:00:30]} 19. g3 {[%emt 0:00:10]} a6 {[%emt 0:04:07]} 20. Kg2 {[%emt 0:00:13]} Ra7 {[%emt 0:02:55]} 21. Qd1 {[%emt 0:02:12]} Nc5 {[%emt 0:07:38]} 22. b4 {[%emt 0:00:27]} Ne6 {[%emt 0:01:06]} 23. Rd3 {[%emt 0:02:04]} g5 {[%emt 0:12:40]} 24. hxg5 {[%emt 0:00:57]} Nxg5 {[%emt 0:03:07]} 25. f3 {[%emt 0:01:37]} d5 {[%emt 0:03:56]} 26. e5 {[%emt 0:10:25]} Qe6 {[%emt 0:00:50]} 27. f4 {[%emt 0:00:13]} Qh3+ {[%emt 0:03:04]} 28. Kg1 {[%emt 0:00:05]} Bxb4 {[%emt 0:03:13]} 29. Ne2 {[%emt 0:04:05]} Bc5+ {[%emt 0:00:22]} 30. Nd4 {[%emt 0:00:04]} Bxd4+ {[%emt 0:00:27]} 31. Rxd4 {[%emt 0:00:03]} Qxg3+ {[%emt 0:00:12]} 32. Kh1 {[%emt 0:00:19]} Nf3 {[%emt 0:02:41]} 33. Qg1 {[%emt 0:00:30]} Nxg1 {[%emt 0:00:28]} 34. Rxg1 {[%emt 0:00:04]} Qxg1+ {[%emt 0:00:36]} 35. Kxg1 {[%emt 0:00:04]} Re6 {[%emt 0:00:17]} 36. Kf2 {[%emt 0:00:10]} f6 {[%emt 0:00:29]} 37. Rxd5 {[%emt 0:00:22]} cxd5 {[%emt 0:01:21]} 38. Bxd5 {[%emt 0:00:05]} fxe5 {[%emt 0:00:19]} 39. Bxe6+ {[%emt 0:00:18]} Kg7 {[%emt 0:00:18]} 40. fxe5 {[%emt 0:00:11]} Re7 {[%emt 0:01:08]} 41. Bc8 {[%emt 0:00:05]} Rxe5 {[%emt 0:00:09]} 42. Bxa6 {[%emt 0:00:05]} b4 {[%emt 0:00:09]} 43. Bd3 {[%emt 0:00:55]} Rxa5 {[%emt 0:00:12]} 44. Ke3 {[%emt 0:00:05]} Rc5 {[%emt 0:00:34]} 45. Kd4 {[%emt 0:00:07]} Rc3 {[%emt 0:00:22]} 46. Be4 {[%emt 0:00:29]} Kf6 {[%emt 0:00:14]} 47. Kd5 {[%emt 0:00:05]} h5 {[%emt 0:00:32]} 0-1

[Event "84th ESP-ch 2019"]
[Site "Marbella"]
[Date "2019.11.20"]
[Round "5.11"]
[White "Diaz Camallonga, Carles"]
[Black "Moral Garcia, Serafin"]
[Result "1-0"]
[ECO "B39"]
[WhiteElo "2465"]
[BlackElo "2267"]
[Annotator "ChessBase"]
[PlyCount "95"]
[EventDate "2019.11.16"]
[EventType "swiss"]
[EventCountry "ESP"]
[SourceTitle "playchess.com"]
[Source "ChessBase"]
[SourceQuality "1"]
[TimeControl "5400+30"]

1. e4 {[%emt 0:00:00]} c5 {[%emt 0:00:00]} 2. Nf3 {[%emt 0:00:00]} g6 {[%emt 0:00:26]} 3. c4 {[%emt 0:00:00]} Bg7 {[%emt 0:00:05]} 4. d4 {[%emt 0:00:00]} cxd4 {[%emt 0:00:19]} 5. Nxd4 {[%emt 0:00:00]} Nc6 {[%emt 0:00:42]} 6. Be3 {[%emt 0:00:03]} Nf6 {[%emt 0:00:35]} 7. Nc3 {[%emt 0:00:04]} Ng4 {[%emt 0:00:45]} 8. Qxg4 {[%emt 0:00:06]} Nxd4 {[%emt 0:00:04]} 9. Qd1 {[%emt 0:00:07]} e5 {[%emt 0:01:05]} 10. Bd3 {[%emt 0:00:59]} d6 {[%emt 0:01:22]} 11. O-O {[%emt 0:00:49]} O-O {[%emt 0:01:01]} 12. Ne2 {[%emt 0:04:08]} Nc6 {[%emt 0:04:04]} 13. Qd2 {[%emt 0:02:43]} Be6 {[%emt 0:04:38]} 14. Rac1 {[%emt 0:01:21]} f5 {[%emt 0:03:29]} 15. f4 {[%emt 0:03:20]} Qd7 {[%emt 0:05:23]} 16. b3 {[%emt 0:05:14]} Kh8 {[%emt 0:03:25]} 17. Ng3 {[%emt 0:02:14]} fxe4 {[%emt 0:06:27]} 18. Bxe4 {[%emt 0:02:23]} Rad8 {[%emt 0:04:21]} 19. fxe5 {[%emt 0:04:08]} Bxe5 {[%emt 0:00:41]} 20. Bxc6 {[%emt 0:05:53]} bxc6 {[%emt 0:02:19]} 21. Bd4 {[%emt 0:00:25]} Bf5 {[%emt 0:08:04]} 22. Bxe5+ {[%emt 0:06:50]} dxe5 {[%emt 0:00:05]} 23. Qxd7 {[%emt 0:00:05]} Rxd7 {[%emt 0:00:08]} 24. Rce1 {[%emt 0:00:03]} Rd2 {[%emt 0:03:51]} 25. Rxe5 {[%emt 0:27:01]} Rxa2 {[%emt 0:00:25]} 26. Nxf5 {[%emt 0:00:05]} Rxf5 {[%emt 0:00:57]} 27. Rfxf5 {[%emt 0:00:17]} gxf5 {[%emt 0:00:06]} 28. Rxf5 {[%emt 0:01:14]} Rb2 {[%emt 0:00:17]} 29. Rf8+ {[%emt 0:01:33]} Kg7 {[%emt 0:00:05]} 30. Ra8 {[%emt 0:01:04]} Ra2 {[%emt 0:02:07]} 31. Rc8 {[%emt 0:00:34]} Ra6 {[%emt 0:00:08]} 32. Rc7+ {[%emt 0:02:36]} Kg6 {[%emt 0:00:14]} 33. Kf2 {[%emt 0:00:18]} h5 {[%emt 0:02:03]} 34. Ke3 {[%emt 0:00:52]} Rb6 {[%emt 0:01:53]} 35. Kd4 {[%emt 0:01:47]} Rxb3 {[%emt 0:00:51]} 36. Rxc6+ {[%emt 0:00:13]} Kf5 {[%emt 0:00:13]} 37. Rc5+ {[%emt 0:01:13]} Kg4 {[%emt 0:00:04]} 38. Ra5 {[%emt 0:00:19]} Rb7 {[%emt 0:02:27]} 39. c5 {[%emt 0:00:26]} Rd7+ {[%emt 0:00:27]} 40. Ke5 {[%emt 0:00:06]} Rd2 {[%emt 0:00:09]} 41. Rxa7 {[%emt 0:00:12]} Kh4 {[%emt 0:00:13]} 42. Ra4+ {[%emt 0:00:54]} Kg5 {[%emt 0:00:06]} 43. c6 {[%emt 0:01:11]} Rxg2 {[%emt 0:00:07]} 44. h4+ {[%emt 0:00:36]} Kg6 {[%emt 0:00:01]} 45. Rc4 {[%emt 0:00:24]} Re2+ {[%emt 0:00:05]} 46. Kd6 {[%emt 0:00:06]} Kf5 {[%emt 0:00:07]} 47. c7 {[%emt 0:00:07]} Re8 {[%emt 0:00:04]} 48. Kd7 {[%emt 0:00:03]} 1-0

[Event "84th ESP-ch 2019"]
[Site "Marbella"]
[Date "2019.11.20"]
[Round "5.12"]
[White "Garcia Romero, Benjamin Abel"]
[Black "Huerga Leache, Mikel"]
[Result "0-1"]
[ECO "A40"]
[WhiteElo "2234"]
[BlackElo "2456"]
[Annotator "ChessBase"]
[PlyCount "73"]
[EventDate "2019.11.16"]
[EventType "swiss"]
[EventCountry "ESP"]
[SourceTitle "playchess.com"]
[Source "ChessBase"]
[SourceQuality "1"]
[TimeControl "5400+30"]

1. d4 {[%emt 0:01:02]} e6 {[%emt 0:04:53]} 2. c4 {[%emt 0:01:27]} d5 {[%emt 0:02:19]} 3. Nf3 {[%emt 0:00:22]} a6 {[%emt 0:00:18]} 4. g3 {[%emt 0:10:10]} dxc4 {[%emt 0:00:35]} 5. Bg2 {[%emt 0:00:24]} b5 {[%emt 0:02:07]} 6. Ne5 {[%emt 0:10:26]} c6 {[%emt 0:00:20]} 7. O-O {[%emt 0:07:13]} Bb7 {[%emt 0:00:58]} 8. a4 {[%emt 0:02:51]} Ne7 {[%emt 0:02:31]} 9. b3 {[%emt 0:01:11]} cxb3 {[%emt 0:00:50]} 10. axb5 {[%emt 0:04:50]} axb5 {[%emt 0:00:32]} 11. Rxa8 {[%emt 0:00:15]} Bxa8 {[%emt 0:00:04]} 12. Qxb3 {[%emt 0:01:42]} Nd7 {[%emt 0:10:01]} 13. Nc3 {[%emt 0:12:05]} Nd5 {[%emt 0:03:02]} 14. Nxd5 {[%emt 0:05:01]} exd5 {[%emt 0:03:29]} 15. e4 {[%emt 0:08:01]} Nxe5 {[%emt 0:00:56]} 16. exd5 {[%emt 0:00:25]} Ng6 {[%emt 0:03:21]} 17. dxc6 {[%emt 0:00:37]} Qc7 {[%emt 0:08:35]} 18. Qa2 {[%emt 0:03:08]} Bxc6 {[%emt 0:02:56]} 19. Qc2 {[%emt 0:03:45]} Kd7 {[%emt 0:00:21]} 20. Bh3+ {[%emt 0:03:47]} Kd8 {[%emt 0:00:26]} 21. Bd2 {[%emt 0:00:49]} Bb7 {[%emt 0:09:50]} 22. Qa2 {[%emt 0:01:04]} Qc6 {[%emt 0:00:36]} 23. f3 {[%emt 0:02:02]} Ke8 {[%emt 0:02:13]} 24. Qa7 {[%emt 0:07:55]} Bd6 {[%emt 0:02:04]} 25. Re1+ {[%emt 0:00:59]} Ne7 {[%emt 0:01:00]} 26. Bb4 {[%emt 0:00:22]} Bxb4 {[%emt 0:03:31]} 27. Qb8+ {[%emt 0:00:19]} Bc8 {[%emt 0:00:05]} 28. Bxc8 {[%emt 0:01:36]} Bd6 {[%emt 0:02:25]} 29. Bd7+ {[%emt 0:03:15]} Kxd7 {[%emt 0:00:06]} 30. Qxh8 {[%emt 0:00:04]} Qc3 {[%emt 0:00:20]} 31. Rf1 {[%emt 0:06:40]} Qxd4+ {[%emt 0:00:14]} 32. Kg2 {[%emt 0:00:52]} Nf5 {[%emt 0:00:13]} 33. Kh3 {[%emt 0:00:34]} Qd3 {[%emt 0:03:30]} 34. Re1 {[%emt 0:00:31]} Ne3 {[%emt 0:01:03]} 35. Qa8 {[%emt 0:00:36]} Qf5+ {[%emt 0:03:40]} 36. g4 {[%emt 0:00:04]} Qf4 {[%emt 0:00:03]} 37. Re2 {[%emt 0:00:04]} 0-1

[Event "84th ESP-ch 2019"]
[Site "Marbella"]
[Date "2019.11.20"]
[Round "5.13"]
[White "Ramirez Diaz, Jose Ramon"]
[Black "Merario Alarcon, Andres"]
[Result "0-1"]
[ECO "B90"]
[WhiteElo "2171"]
[BlackElo "2394"]
[Annotator "ChessBase"]
[PlyCount "56"]
[EventDate "2019.11.16"]
[EventType "swiss"]
[EventCountry "ESP"]
[SourceTitle "playchess.com"]
[Source "ChessBase"]
[SourceQuality "1"]
[TimeControl "5400+30"]

1. e4 {[%emt 0:00:00]} c5 {[%emt 0:02:10]} 2. Nf3 {[%emt 0:00:00]} d6 {[%emt 0:01:28]} 3. d4 {[%emt 0:00:05]} cxd4 {[%emt 0:00:09]} 4. Nxd4 {[%emt 0:00:06]} Nf6 {[%emt 0:00:12]} 5. Nc3 {[%emt 0:00:08]} a6 {[%emt 0:02:06]} 6. Qe2 {[%emt 0:00:21]} e5 {[%emt 0:00:44]} 7. Nf5 {[%emt 0:00:24]} d5 {[%emt 0:00:10]} 8. Bg5 {[%emt 0:01:22]} d4 {[%emt 0:00:07]} 9. O-O-O {[%emt 0:00:29]} Nc6 {[%emt 0:00:29]} 10. Qf3 {[%emt 0:06:22]} Qa5 {[%emt 0:00:41]} 11. Bxf6 {[%emt 0:03:03]} dxc3 {[%emt 0:00:11]} 12. Nxg7+ {[%emt 0:25:19]} Bxg7 {[%emt 0:00:11]} 13. Bxg7 {[%emt 0:00:07]} Rg8 {[%emt 0:04:03]} 14. Qf6 {[%emt 0:09:11]} cxb2+ {[%emt 0:27:43]} 15. Kxb2 {[%emt 0:00:24]} Qb4+ {[%emt 0:01:57]} 16. Kc1 {[%emt 0:00:18]} Qa3+ {[%emt 0:02:24]} 17. Kd2 {[%emt 0:02:36]} Qa5+ {[%emt 0:06:25]} 18. Ke3 {[%emt 0:07:46]} Qc5+ {[%emt 0:02:03]} 19. Kd2 {[%emt 0:01:06]} Bg4 {[%emt 0:03:42]} 20. f3 {[%emt 0:02:49]} Rd8+ {[%emt 0:04:06]} 21. Bd3 {[%emt 0:04:48]} Be6 {[%emt 0:06:21]} 22. Rhe1 {[%emt 0:05:08]} Nb4 {[%emt 0:07:04]} 23. Rc1 {[%emt 0:03:32]} Nxa2 {[%emt 0:06:21]} 24. Rb1 {[%emt 0:00:59]} Nb4 {[%emt 0:00:39]} 25. Rb2 {[%emt 0:04:48]} Nxd3 {[%emt 0:02:53]} 26. cxd3 {[%emt 0:00:21]} Qa3 {[%emt 0:00:59]} 27. Reb1 {[%emt 0:02:43]} Qxd3+ {[%emt 0:00:21]} 28. Ke1 {[%emt 0:00:12]} Qe3+ {[%emt 0:00:10]} 0-1

[Event "84th ESP-ch 2019"]
[Site "Marbella"]
[Date "2019.11.20"]
[Round "5.14"]
[White "Berrocal Ruiz, Valentin"]
[Black "Vega Gutierrez, Sabrina"]
[Result "1-0"]
[ECO "D45"]
[WhiteElo "2143"]
[BlackElo "2374"]
[Annotator "ChessBase"]
[PlyCount "85"]
[EventDate "2019.11.16"]
[EventType "swiss"]
[EventCountry "ESP"]
[SourceTitle "playchess.com"]
[Source "ChessBase"]
[SourceQuality "1"]
[TimeControl "5400+30"]

1. d4 {[%emt 0:00:00]} d5 {[%emt 0:00:00]} 2. c4 {[%emt 0:00:00]} e6 {[%emt 0:00:00]} 3. Nc3 {[%emt 0:00:15]} c6 {[%emt 0:01:48]} 4. e3 {[%emt 0:01:09]} Nf6 {[%emt 0:00:23]} 5. Nf3 {[%emt 0:00:24]} Nbd7 {[%emt 0:00:14]} 6. Qc2 {[%emt 0:00:33]} Bd6 {[%emt 0:00:32]} 7. b3 {[%emt 0:00:21]} O-O {[%emt 0:00:47]} 8. Be2 {[%emt 0:00:46]} b6 {[%emt 0:03:23]} 9. O-O {[%emt 0:00:35]} Bb7 {[%emt 0:00:08]} 10. Bb2 {[%emt 0:02:23]} Qe7 {[%emt 0:00:48]} 11. e4 {[%emt 0:04:47]} dxe4 {[%emt 0:00:36]} 12. Nxe4 {[%emt 0:00:07]} Nxe4 {[%emt 0:00:20]} 13. Qxe4 {[%emt 0:00:06]} f5 {[%emt 0:13:43]} 14. Qc2 {[%emt 0:07:34]} c5 {[%emt 0:02:07]} 15. Rad1 {[%emt 0:03:39]} Rad8 {[%emt 0:21:38]} 16. Rfe1 {[%emt 0:11:22]} Be4 {[%emt 0:09:38]} 17. Qc1 {[%emt 0:01:02]} cxd4 {[%emt 0:03:38]} 18. Bxd4 {[%emt 0:04:19]} e5 {[%emt 0:01:48]} 19. Bc3 {[%emt 0:00:33]} Ba8 {[%emt 0:05:59]} 20. Qg5 {[%emt 0:07:08]} Rf6 {[%emt 0:03:47]} 21. c5 {[%emt 0:04:08]} bxc5 {[%emt 0:09:31]} 22. Bc4+ {[%emt 0:05:40]} Kh8 {[%emt 0:00:05]} 23. Nxe5 {[%emt 0:04:16]} Nxe5 {[%emt 0:00:47]} 24. Bxe5 {[%emt 0:00:23]} Bxe5 {[%emt 0:01:56]} 25. Rxd8+ {[%emt 0:00:19]} Qxd8 {[%emt 0:00:05]} 26. Rxe5 {[%emt 0:00:22]} Be4 {[%emt 0:10:00]} 27. Qd2 {[%emt 0:11:28]} Rf8 {[%emt 0:05:01]} 28. Qxd8 {[%emt 0:01:38]} Rxd8 {[%emt 0:00:02]} 29. f3 {[%emt 0:00:29]} Bb1 {[%emt 0:00:27]} 30. a3 {[%emt 0:05:27]} g5 {[%emt 0:04:06]} 31. h4 {[%emt 0:01:38]} gxh4 {[%emt 0:01:23]} 32. Kh2 {[%emt 0:00:12]} Rc8 {[%emt 0:00:46]} 33. Re7 {[%emt 0:00:12]} a5 {[%emt 0:00:29]} 34. Ra7 {[%emt 0:00:20]} Rb8 {[%emt 0:00:27]} 35. Rxa5 {[%emt 0:02:31]} Bc2 {[%emt 0:00:10]} 36. Rxc5 {[%emt 0:00:13]} Bxb3 {[%emt 0:00:03]} 37. Rb5 {[%emt 0:00:14]} Rxb5 {[%emt 0:00:18]} 38. Bxb5 {[%emt 0:00:09]} Kg7 {[%emt 0:01:29]} 39. Kh3 {[%emt 0:00:40]} Kf6 {[%emt 0:00:13]} 40. Kxh4 {[%emt 0:00:15]} Ke5 {[%emt 0:00:34]} 41. a4 {[%emt 0:01:23]} Bd5 {[%emt 0:00:46]} 42. Bd7 {[%emt 0:00:23]} Kf4 {[%emt 0:00:34]} 43. Bc8 {[%emt 0:00:36]} 1-0

[Event "84th ESP-ch 2019"]
[Site "Marbella"]
[Date "2019.11.20"]
[Round "5.15"]
[White "Serarols Mabras, Bernat"]
[Black "Guillo Longares, Cecilia"]
[Result "1-0"]
[ECO "A56"]
[WhiteElo "2367"]
[BlackElo "2100"]
[Annotator "ChessBase"]
[PlyCount "71"]
[EventDate "2019.11.16"]
[EventType "swiss"]
[EventCountry "ESP"]
[SourceTitle "playchess.com"]
[Source "ChessBase"]
[SourceQuality "1"]
[TimeControl "5400+30"]

1. d4 Nf6 {[%emt 0:00:00]} 2. c4 {[%emt 0:00:00]} c5 {[%emt 0:00:00]} 3. d5 {[%emt 0:00:00]} g6 {[%emt 0:00:00]} 4. Nc3 {[%emt 0:00:00]} d6 {[%emt 0:00:00]} 5. e4 {[%emt 0:00:00]} Bg7 {[%emt 0:00:00]} 6. Bd3 {[%emt 0:00:00]} O-O {[%emt 0:00:03]} 7. h3 {[%emt 0:00:00]} e6 {[%emt 0:00:10]} 8. Nf3 {[%emt 0:00:03]} exd5 {[%emt 0:00:06]} 9. cxd5 {[%emt 0:00:04]} a6 {[%emt 0:00:24]} 10. a4 {[%emt 0:00:05]} Nbd7 {[%emt 0:00:13]} 11. O-O {[%emt 0:00:15]} Rb8 {[%emt 0:00:11]} 12. Bf4 {[%emt 0:00:50]} Qe7 {[%emt 0:01:23]} 13. Re1 {[%emt 0:00:24]} Nh5 {[%emt 0:00:28]} 14. Bh2 {[%emt 0:00:22]} Ne5 {[%emt 0:00:27]} 15. Be2 {[%emt 0:00:40]} Nxf3+ {[%emt 0:02:46]} 16. Bxf3 {[%emt 0:00:17]} Be5 {[%emt 0:00:13]} 17. Bxh5 {[%emt 0:09:57]} Bxh2+ {[%emt 0:00:09]} 18. Kxh2 {[%emt 0:00:13]} Qe5+ {[%emt 0:00:11]} 19. g3 {[%emt 0:00:59]} gxh5 {[%emt 0:02:51]} 20. f4 {[%emt 0:02:17]} Qg7 {[%emt 0:00:12]} 21. Qxh5 {[%emt 0:01:11]} Kh8 {[%emt 0:00:12]} 22. e5 {[%emt 0:05:20]} f5 {[%emt 0:04:02]} 23. exd6 {[%emt 0:19:11]} Rg8 {[%emt 0:01:11]} 24. Kh1 {[%emt 0:21:25]} Qxg3 {[%emt 0:18:31]} 25. Rg1 {[%emt 0:00:18]} Qxf4 {[%emt 0:00:16]} 26. Rxg8+ {[%emt 0:00:07]} Kxg8 {[%emt 0:00:03]} 27. Qe8+ {[%emt 0:00:37]} Kg7 {[%emt 0:00:06]} 28. Rg1+ {[%emt 0:00:18]} Kh6 {[%emt 0:00:17]} 29. Qf8+ {[%emt 0:00:18]} Kh5 {[%emt 0:00:08]} 30. Qf7+ {[%emt 0:00:05]} Kh6 {[%emt 0:00:14]} 31. Qg7+ {[%emt 0:00:06]} Kh5 {[%emt 0:00:09]} 32. Qxh7+ {[%emt 0:00:05]} Qh6 {[%emt 0:00:07]} 33. Qxh6+ {[%emt 0:01:20]} Kxh6 {[%emt 0:00:05]} 34. Rg8 {[%emt 0:00:06]} Kh7 {[%emt 0:00:36]} 35. d7 {[%emt 0:00:35]} Kxg8 {[%emt 0:00:33]} 36. d8=Q+ {[%emt 0:00:06]} 1-0